fUSD/lending_fUSD_20250620
["ID","MTS","AMOUNT","RATE_DAILY","PERIOD"]
[366712002,1750415641160,-490.0,0.00029325,4]
[366712003,1750415641171,-490.0,0.00029325,4]
[366712004,1750415641182,-1218.9,0.00029325,4]
[366712005,1750415641193,-901.28,0.00029325,4]
[366712006,1750415641205,-507.19,0.00029325,4]
[366712007,1750415641216,-490.0,0.00029325,4]
[366712008,1750415641229,-584.6,0.00029325,4]
[366712009,1750415641240,-490.0,0.00029325,4]
[366712010,1750415641251,-490.0,0.00029325,4]
[366712011,1750415641263,-490.0,0.00029325,4]
[366712012,1750415641274,-624.83,0.00029325,4]
[366712013,1750415641285,-947.23,0.00029325,4]
[366712014,1750415641296,-497.34,0.00029325,4]
[366712015,1750415641307,-1160.0,0.00029325,4]
[366712016,1750415641318,-682.25,0.00029325,4]
[366712017,1750415641328,-676.69,0.00029325,4]
[366712018,1750415641339,-798.57,0.00029325,4]
[366712019,1750415641350,-490.0,0.00029325,4]
[366712020,1750415641361,-490.0,0.00029325,4]
[366712021,1750415641371,-490.0,0.00029325,4]
[366712022,1750415641382,-490.0,0.00029325,4]
[366712023,1750415641393,-490.0,0.00029325,4]
[366712024,1750415641403,-994.26,0.00029325,4]
[366712025,1750415641414,-490.0,0.00029325,4]
[366712026,1750415641424,-490.0,0.00029325,4]
[366712027,1750415641435,-504.86,0.00029325,4]
[366712028,1750415641446,-1262.16,0.00029325,4]
[366712029,1750415641458,-526.89,0.00029325,4]
[366712030,1750415641468,-490.0,0.00029325,4]
[366712031,1750415641479,-490.0,0.00029325,4]
[366712032,1750415641490,-562.08,0.00029325,4]
[366712033,1750415641501,-545.75,0.00029325,4]
[366712034,1750415641512,-1061.69,0.00029325,4]
[366712035,1750415641524,-809.96,0.00029325,4]
[366712036,1750415641536,-631.0,0.00029325,4]
[366712037,1750415641546,-1378.13,0.00029325,4]
[366712038,1750415641558,-490.0,0.00029325,4]
[366712039,1750415641570,-490.0,0.00029325,4]
[366712040,1750415641581,-490.0,0.00029325,4]
[366712041,1750415641592,-559.26,0.00029325,4]
[366712042,1750415641603,-491.32483433,0.00029325,4]
[366712043,1750415641615,-707.03,0.00029325,4]
[366712044,1750415641625,-490.0,0.00029325,4]
[366712045,1750415641636,-2021.51,0.00029325,4]
[366712046,1750415641648,-547.36,0.00029325,4]
[366712047,1750415641659,-1831.85,0.00029325,4]
[366712048,1750415641670,-606.95,0.00029325,4]
[366712049,1750415641681,-1476.65,0.00029325,4]
[366712050,1750415641691,-490.0,0.00029325,4]
[366712051,1750415641702,-1005.12,0.00029325,4]
[366712052,1750415641713,-1516.56,0.00029325,4]
[366712053,1750415641723,-600.95,0.00029325,4]
[366712054,1750415641734,-490.0,0.00029325,4]
[366712055,1750415641745,-490.0,0.00029325,4]
[366712056,1750415641755,-490.0,0.00029325,4]
[366712057,1750415641765,-592.33821077,0.00029325,4]
[366712058,1750415641776,-302.3,0.00029325,4]
[366712059,1750415641786,-1853.92,0.00029325,4]
[366712060,1750415641796,-490.0,0.00029325,4]
[366712061,1750415641807,-1207.48,0.00029325,4]
[366712062,1750415641817,-970.42,0.00029325,4]
[366712063,1750415641828,-1085.47,0.00029325,4]
[366712064,1750415641838,-493.89098375,0.00029325,4]
[366712065,1750415641849,-555.86,0.00029325,4]
[366712066,1750415641859,-1321.89,0.00029325,4]
[366712067,1750415641870,-907.27,0.00029325,4]
[366712068,1750415641880,-490.0,0.00029325,4]
[366712069,1750415641890,-490.0,0.00029325,4]
[366712070,1750415641900,-490.0,0.00029325,4]
[366712071,1750415641910,-1835.37,0.00029325,4]
[366712072,1750415641920,-490.0,0.00029325,4]
[366712073,1750415641930,-556.59,0.00029325,4]
[366712074,1750415641939,-1052.99,0.00029325,4]
[366712075,1750415641949,-490.0,0.00029325,4]
[366712076,1750415641959,-567.01,0.00029325,4]
[366712077,1750415641969,-492.0,0.00029325,4]
[366712078,1750415641979,-819.36,0.00029325,4]
[366712079,1750415641989,-2175.07,0.00029325,4]
[366712080,1750415642000,-490.0,0.00029325,4]
[366712081,1750415642011,-789.56,0.00029325,4]
[366712082,1750415642021,-1474.82,0.00029325,4]
[366712083,1750415642032,-490.0,0.00029325,4]
[366712084,1750415642043,-1752.57,0.00029325,4]
[366712085,1750415642054,-490.0,0.00029325,4]
[366712086,1750415642064,-490.0,0.00029325,4]
[366712087,1750415642074,-2581.66,0.00029325,4]
[366712088,1750415642086,-490.0,0.00029325,4]
[366712089,1750415642097,-1705.52,0.00029325,4]
[366712090,1750415642107,-305.05222258,0.00029325,4]
[366712091,1750415642118,-1306.7,0.00029325,4]
[366712092,1750415642129,-525.6,0.00029325,4]
[366712093,1750415642139,-737.94,0.00029325,4]
[366712094,1750415642149,-490.0,0.00029325,4]
[366712095,1750415642161,-490.0,0.00029325,4]
[366712096,1750415642171,-494.43409481,0.00029325,4]
[366712097,1750415642181,-616.11,0.00029325,4]
[366712098,1750415642192,-749.2,0.00029325,4]
[366712099,1750415642201,-1450.49,0.00029325,4]
[366712100,1750415642212,-733.41,0.00029325,4]
[366712101,1750415642222,-2517.34,0.00029325,4]
[366712102,1750415642232,-490.0,0.00029325,4]
[366712103,1750415642243,-647.98,0.00029325,4]
[366712104,1750415642253,-1420.61,0.00029325,4]
[366712105,1750415642264,-666.21,0.00029325,4]
[366712106,1750415642274,-490.0,0.00029325,4]
[366712107,1750415642284,-798.3,0.00029325,4]
[366712108,1750415642488,-490.0,0.00029325,4]
[366712109,1750415642499,-490.0,0.00029325,4]
[366712110,1750415642508,-490.0,0.00029325,4]
[366712111,1750415642519,-629.3,0.00029325,4]
[366712112,1750415642530,-744.22,0.00029325,4]
[366712113,1750415642540,-490.0,0.00029325,4]
[366712114,1750415642550,-824.71,0.00029325,4]
[366712115,1750415642562,-1579.86,0.00029325,4]
[366712116,1750415642572,-490.0,0.00029325,4]
[366712117,1750415642583,-509.05,0.00029325,4]
[366712118,1750415642593,-2238.49,0.00029325,4]
[366712119,1750415642604,-490.0,0.00029325,4]
[366712120,1750415642615,-597.0,0.00029325,4]
[366712121,1750415642626,-490.0,0.00029325,4]
[366712122,1750415642636,-933.51,0.00029325,4]
[366712123,1750415642645,-509.91947329,0.00029325,4]
[366712124,1750415642657,-822.58,0.00029325,4]
[366712125,1750415642668,-838.77,0.00029325,4]
[366712126,1750415642677,-504.68,0.00029325,4]
[366712127,1750415642687,-507.81,0.00029325,4]
[366712128,1750415642697,-490.0,0.00029325,4]
[366712129,1750415642707,-490.0,0.00029325,4]
[366712130,1750415642717,-572.5,0.00029325,4]
[366712131,1750415642728,-490.0,0.00029325,4]
[366712132,1750415642738,-490.0,0.00029325,4]
[366712133,1750415642748,-1129.55,0.00029325,4]
[366712134,1750415642757,-858.91,0.00029325,4]
[366712135,1750415642767,-490.0,0.00029325,4]
[366712136,1750415642778,-800.69,0.00029325,4]
[366712137,1750415642788,-1036.77,0.00029325,4]
[366712138,1750415642800,-490.0,0.00029325,4]
[366712139,1750415642809,-1310.63,0.00029325,4]
[366712140,1750415642819,-490.0,0.00029325,4]
[366712141,1750415642829,-867.83,0.00029325,4]
[366712142,1750415642839,-545.19,0.00029325,4]
[366712143,1750415642850,-1236.78,0.00029325,4]
[366712144,1750415642860,-490.0,0.00029325,4]
[366712145,1750415642870,-263.20620237,0.00029325,4]
[366712146,1750415642880,-509.27,0.00029325,4]
[366712147,1750415642889,-490.0,0.00029325,4]
[366712148,1750415642899,-1804.01,0.00029325,4]
[366712149,1750415642910,-490.0,0.00029325,4]
[366712150,1750415642919,-1718.47,0.00029325,4]
[366712151,1750415642929,-490.0,0.00029325,4]
[366712152,1750415642939,-528.49,0.00029325,4]
[366712153,1750415642949,-490.0,0.00029325,4]
[366712154,1750415642959,-808.69,0.00029325,4]
[366712155,1750415642968,-490.0,0.00029325,4]
[366712156,1750415642978,-490.0,0.00029325,4]
[366712157,1750415642989,-726.13,0.00029325,4]
[366712158,1750415642998,-490.0,0.00029326,4]
[366712159,1750415643009,-490.0,0.00029326,4]
[366712160,1750415643019,-924.0,0.00029326,4]
[366712161,1750415643029,-490.0,0.00029326,4]
[366712162,1750415643039,-490.0,0.00029326,4]
[366712163,1750415643048,-257.63888768,0.00029326,4]
[366712164,1750415643058,-315.76726882,0.00029326,4]
[366712165,1750415643068,-555.64,0.00029326,4]
[366712166,1750415643078,-490.0,0.00029326,4]
[366712167,1750415643088,-560.67,0.00029326,4]
[366712168,1750415643099,-714.6,0.00029326,4]
[366712169,1750415643109,-490.0,0.00029326,4]
[366712170,1750415643120,-490.0,0.00029326,4]
[366712171,1750415643130,-584.97,0.00029326,4]
[366712172,1750415643140,-490.0,0.00029326,4]
[366712173,1750415643150,-528.72,0.00029326,4]
[366712174,1750415643160,-490.0,0.00029326,4]
[366712175,1750415643171,-490.0,0.00029326,4]
[366712176,1750415643181,-490.0,0.00029326,4]
[366712177,1750415643191,-490.0,0.00029326,4]
[366712178,1750415643201,-595.37,0.00029326,4]
[366712179,1750415643212,-151.0,0.0002936,3]
[366712180,1750415643225,-150.0,0.00029374,7]
[366712181,1750415643236,-775.47665243,0.00029383,20]
[366712182,1750415643246,-562.92,0.000294,2]
[366712183,1750415643257,-700.0,0.00029404,7]
[366712184,1750415643267,-500.0,0.00029404,7]
[366712185,1750415643279,-500.0,0.00029404,7]
[366712186,1750415643290,-490.0,0.00029453,4]
[366712187,1750415643301,-168.3888056,0.00029472,2]
[366712188,1750415643312,-202.0,0.0002948,30]
[366712189,1750415643322,-300.0,0.000295,120]
[366712190,1750415643333,-218.0,0.0002953,2]
[366712191,1750415643343,-211.0,0.0002953,2]
[366712192,1750415643353,-209.0,0.0002953,2]
[366712193,1750415643362,-775.47665243,0.00029555,21]
[366712194,1750415643372,-855.14,0.00029557,4]
[366712195,1750415643382,-490.0,0.00029557,4]
[366712196,1750415643393,-941.29,0.00029557,4]
[366712197,1750415643402,-710.39,0.00029567,4]
[366712198,1750415643412,-2657.88,0.00029567,4]
[366712199,1750415643423,-678.91,0.00029567,4]
[366712200,1750415643433,-951.97,0.00029567,4]
[366712201,1750415643443,-982.82,0.00029567,4]
[366712202,1750415643452,-934.95,0.00029567,4]
[366712203,1750415643461,-1196.7,0.00029567,4]
[366712204,1750415643472,-905.13,0.00029567,4]
[366712205,1750415643482,-733.67,0.00029567,4]
[366712206,1750415643493,-623.14,0.00029567,4]
[366712207,1750415643503,-858.58,0.00029567,4]
[366712208,1750415643513,-4996.22,0.00029567,4]
[366712209,1750415643523,-1411.02,0.00029567,4]
[366712210,1750415643533,-351.40219777,0.00029567,4]
[366712211,1750415643543,-566.53,0.00029567,4]
[366712212,1750415643554,-673.04,0.00029567,4]
[366712213,1750415643564,-231.59009445,0.00029567,4]
[366712214,1750415643574,-560.81,0.00029567,4]
[366712215,1750415643584,-5470.75,0.00029567,4]
[366712216,1750415643595,-247.10189617,0.00029567,4]
[366712217,1750415643606,-608.76,0.00029567,4]
[366712218,1750415643619,-2781.24,0.00029567,4]
[366712219,1750415643630,-622.46,0.00029567,4]
[366712220,1750415643641,-2671.47,0.00029567,4]
[366712221,1750415643652,-807.14,0.00029567,4]
[366712222,1750415643663,-150.0,0.00029567,7]
[366712223,1750415643674,-490.0,0.00029577,4]
[366712224,1750415643684,-490.0,0.00029577,4]
[366712225,1750415643696,-490.0,0.00029577,4]
[366712226,1750415643706,-525.64,0.00029577,4]
[366712227,1750415643717,-490.0,0.00029577,4]
[366712228,1750415643728,-824.86,0.00029577,4]
[366712229,1750415643739,-490.0,0.00029577,4]
[366712230,1750415643750,-1042.35,0.00029577,4]
[366712231,1750415643761,-2063.423116,0.00029577,4]
[366712232,1750415643771,-1129.83,0.00029577,4]
[366712233,1750415643782,-490.0,0.00029577,4]
[366712234,1750415643793,-208.45,0.00029577,4]
[366712235,1750415643804,-2980.629608,0.00029577,4]
[366712236,1750415643815,-1443.11,0.00029577,4]
[366712237,1750415643826,-6813.75,0.00029577,4]
[366712238,1750415643837,-471.89222809,0.00029577,4]
[366712239,1750415643848,-977.73,0.00029577,4]
[366712240,1750415643859,-1060.66,0.00029577,4]
[366712241,1750415643871,-1271.04,0.00029577,4]
[366712242,1750415643882,-490.0,0.00029577,4]
[366712243,1750415643893,-1687.17,0.00029577,4]
[366712244,1750415643905,-1425.44,0.00029577,4]
[366712245,1750415643915,-1260.23,0.00029577,4]
[366712246,1750415643927,-535.62,0.00029577,4]
[366712247,1750415643939,-600.47,0.00029577,4]
[366712248,1750415643950,-490.0,0.00029577,4]
[366712249,1750415643960,-7447.5,0.00029577,4]
[366712250,1750415643972,-490.0,0.00029577,4]
[366712251,1750415643983,-490.0,0.00029577,4]
[366712252,1750415643994,-998.98,0.00029577,4]
[366712253,1750415644005,-182.78086494,0.00029577,4]
[366712254,1750415644017,-1377.1,0.00029577,4]
[366712255,1750415644028,-4861.36,0.00029577,4]
[366712256,1750415644039,-1977.29,0.00029577,4]
[366712257,1750415644050,-1276.4,0.00029577,4]
[366712258,1750415644062,-2235.26,0.00029577,4]
[366712259,1750415644074,-2488.9,0.00029577,4]
[366712260,1750415644086,-1190.82,0.00029577,4]
[366712261,1750415644097,-712.91,0.00029577,4]
[366712262,1750415644108,-1879.2,0.00029577,4]
[366712263,1750415644120,-408.6,0.00029577,4]
[366712264,1750415644131,-3348.43,0.00029577,4]
[366712265,1750415644142,-2145.92,0.00029577,4]
[366712266,1750415644154,-3119.56,0.00029577,4]
[366712267,1750415644166,-3273.4,0.00029577,4]
[366712268,1750415644178,-490.0,0.00029579,4]
[366712269,1750415644190,-490.0,0.00029579,4]
[366712270,1750415644203,-490.0,0.00029579,4]
[366712271,1750415644214,-1480.37,0.00029579,4]
[366712272,1750415644226,-1643.1,0.00029579,4]
[366712273,1750415644238,-565.51,0.00029579,4]
[366712274,1750415644250,-492.45,0.00029579,4]
[366712275,1750415644262,-2032.33,0.00029579,4]
[366712276,1750415644274,-880.4,0.00029579,4]
[366712277,1750415644287,-490.0,0.00029579,4]
[366712278,1750415644298,-1088.85,0.00029579,4]
[366712279,1750415644310,-848.08,0.00029579,4]
[366712280,1750415644322,-912.78,0.00029579,4]
[366712281,1750415644334,-1634.09,0.00029579,4]
[366712282,1750415644346,-1838.84,0.00029579,4]
[366712283,1750415644358,-895.29,0.00029579,4]
[366712284,1750415644370,-818.8,0.00029579,4]
[366712285,1750415644382,-669.38,0.00029579,4]
[366712286,1750415644393,-490.0,0.00029579,4]
[366712287,1750415644405,-1627.01,0.00029579,4]
[366712288,1750415644416,-490.0,0.00029579,4]
[366712289,1750415644428,-490.0,0.00029579,4]
[366712290,1750415644440,-494.48,0.00029579,4]
[366712291,1750415644452,-1078.58,0.00029579,4]
[366712292,1750415644464,-994.67,0.00029579,4]
[366712293,1750415644477,-771.65,0.00029579,4]
[366712294,1750415644489,-490.0,0.00029579,4]
[366712295,1750415644501,-694.41,0.00029579,4]
[366712296,1750415644513,-490.0,0.00029579,4]
[366712297,1750415644524,-679.99,0.00029579,4]
[366712298,1750415644536,-2362.55,0.00029579,4]
[366712299,1750415644547,-490.0,0.00029579,4]
[366712300,1750415644559,-490.0,0.00029579,4]
[366712301,1750415644572,-592.8,0.00029579,4]
[366712302,1750415644584,-490.0,0.00029579,4]
[366712303,1750415644596,-542.79,0.00029579,4]
[366712304,1750415644608,-1385.22,0.00029579,4]
[366712305,1750415644619,-1591.3,0.00029579,4]
[366712306,1750415644631,-490.0,0.00029579,4]
[366712307,1750415644643,-1073.69,0.00029579,4]
[366712308,1750415644655,-616.36,0.00029579,4]
[366712309,1750415644667,-249.6,0.00029579,4]
[366712310,1750415644679,-512.87581655,0.00029579,4]
[366712311,1750415644691,-490.0,0.00029579,4]
[366712312,1750415644703,-583.29,0.00029579,4]
[366712313,1750415644715,-1175.68,0.00029579,4]
[366712314,1750415644727,-1312.24,0.00029579,4]
[366712315,1750415644739,-1363.77,0.00029579,4]
[366712316,1750415644752,-770.8,0.00029579,4]
[366712317,1750415644763,-997.01,0.00029579,4]
[366712318,1750415644775,-989.39,0.00029579,4]
[366712319,1750415644787,-567.86,0.00029579,4]
[366712320,1750415644799,-1096.04,0.00029579,4]
[366712321,1750415644810,-1520.45,0.00029579,4]
[366712322,1750415644822,-805.39,0.00029579,4]
[366712323,1750415644834,-490.0,0.00029579,4]
[366712324,1750415644846,-1428.58,0.00029579,4]
[366712325,1750415644858,-596.59,0.00029579,4]
[366712326,1750415644870,-5382.53,0.00029579,4]
[366712327,1750415644882,-490.0,0.00029579,4]
[366712328,1750415644894,-703.96,0.00029579,4]
[366712329,1750415644907,-1669.54,0.00029579,4]
[366712330,1750415644919,-1601.56,0.00029579,4]
[366712331,1750415644931,-2721.61,0.00029579,4]
[366712332,1750415644943,-490.0,0.00029579,4]
[366712333,1750415644955,-741.54,0.00029579,4]
[366712334,1750415644967,-669.76,0.00029579,4]
[366712335,1750415644979,-1225.01,0.00029579,4]
[366712336,1750415644990,-2422.36,0.00029579,4]
[366712337,1750415645001,-1005.68,0.00029579,4]
[366712338,1750415645013,-490.0,0.00029579,4]
[366712339,1750415645025,-2138.59,0.00029579,4]
[366712340,1750415645037,-998.16,0.00029579,4]
[366712341,1750415645048,-4396.87,0.00029579,4]
[366712342,1750415645068,-933.76,0.00029579,4]
[366712343,1750415645093,-897.22,0.00029579,4]
[366712344,1750415645114,-1489.74,0.00029579,4]
[366712345,1750415645137,-2632.99,0.00029579,4]
[366712346,1750415645157,-490.0,0.00029579,4]
[366712347,1750415645179,-2115.45,0.00029579,4]
[366712348,1750415645202,-969.59,0.00029579,4]
[366712349,1750415645225,-1788.12,0.00029579,4]
[366712350,1750415645250,-587.84,0.00029579,4]
[366712351,1750415645270,-747.47,0.00029579,4]
[366712352,1750415645292,-629.05,0.00029579,4]
[366712353,1750415645311,-1158.39,0.00029579,4]
[366712354,1750415645328,-4900.18,0.00029579,4]
[366712355,1750415645348,-490.0,0.00029579,4]
[366712356,1750415645366,-1552.28,0.00029579,4]
[366712357,1750415645384,-540.28,0.00029579,4]
[366712358,1750415645403,-1986.49,0.00029579,4]
[366712359,1750415645421,-2142.56,0.00029579,4]
[366712360,1750415645439,-675.46,0.00029579,4]
[366712361,1750415645456,-2131.24,0.00029579,4]
[366712362,1750415645475,-1335.47,0.00029579,4]
[366712363,1750415645495,-894.67,0.00029579,4]
[366712364,1750415645522,-3901.98,0.00029579,4]
[366712365,1750415645540,-694.78,0.00029579,4]
[366712366,1750415645558,-748.02,0.00029579,4]
[366712367,1750415645576,-2210.45,0.00029579,4]
[366712368,1750415645596,-1823.65,0.00029579,4]
[366712369,1750415645615,-1839.21,0.00029579,4]
[366712370,1750415645633,-951.3,0.00029579,4]
[366712371,1750415645653,-828.87,0.00029579,4]
[366712372,1750415645671,-490.0,0.00029579,4]
[366712373,1750415645689,-828.66,0.00029579,4]
[366712374,1750415645708,-2336.71,0.00029579,4]
[366712375,1750415645725,-1193.56,0.00029579,4]
[366712376,1750415645745,-1201.91,0.00029579,4]
[366712377,1750415645763,-1533.32,0.00029579,4]
[366712378,1750415645784,-2402.13,0.00029579,4]
[366712379,1750415645802,-2054.14,0.00029579,4]
[366712380,1750415645821,-490.0,0.00029589,4]
[366712381,1750415645839,-490.0,0.00029589,4]
[366712382,1750415645857,-457.77940217,0.00029589,4]
[366712383,1750415645875,-490.0,0.00029589,4]
[366712384,1750415645893,-490.0,0.00029589,4]
[366712385,1750415645911,-490.0,0.00029589,4]
[366712386,1750415645930,-536.23,0.00029589,4]
[366712387,1750415645949,-310.82474775,0.00029589,4]
[366712388,1750415645968,-686.65,0.00029589,4]
[366712389,1750415645986,-897.84,0.00029589,4]
[366712390,1750415646004,-793.14,0.00029589,4]
[366712391,1750415646023,-656.19,0.00029589,4]
[366712392,1750415646041,-624.06,0.00029589,4]
[366712393,1750415646059,-490.0,0.00029589,4]
[366712394,1750415646078,-568.83,0.00029589,4]
[366712395,1750415646097,-402.69,0.00029589,4]
[366712396,1750415646116,-697.89,0.00029589,4]
[366712397,1750415646135,-490.0,0.00029589,4]
[366712398,1750415646152,-724.36,0.00029589,4]
[366712399,1750415646169,-490.0,0.00029589,4]
[366712400,1750415646187,-490.0,0.00029589,4]
[366712401,1750415646205,-1029.22,0.00029589,4]
[366712402,1750415646222,-490.0,0.00029589,4]
[366712403,1750415646242,-490.0,0.00029589,4]
[366712404,1750415646262,-583.85796864,0.00029589,4]
[366712405,1750415646281,-490.0,0.00029589,4]
[366712406,1750415646300,-490.0,0.00029589,4]
[366712407,1750415646317,-490.0,0.00029589,4]
[366712408,1750415646334,-817.57,0.00029589,4]
[366712409,1750415646352,-490.0,0.00029589,4]
[366712410,1750415646369,-490.0,0.00029589,4]
[366712411,1750415646386,-490.0,0.00029589,4]
[366712412,1750415646404,-860.55,0.00029589,4]
[366712413,1750415646422,-498.73756582,0.00029589,4]
[366712414,1750415646440,-490.0,0.00029589,4]
[366712415,1750415646458,-490.0,0.00029589,4]
[366712416,1750415646477,-490.0,0.00029589,4]
[366712417,1750415646495,-490.0,0.00029589,4]
[366712418,1750415646511,-490.0,0.00029589,4]
[366712419,1750415646527,-490.0,0.00029589,4]
[366712420,1750415646544,-490.0,0.00029589,4]
[366712421,1750415646562,-490.0,0.00029589,4]
[366712422,1750415646581,-650.85,0.00029589,4]
[366712423,1750415646600,-490.0,0.00029589,4]
[366712424,1750415646617,-666.55,0.00029589,4]
[366712425,1750415646637,-490.0,0.00029589,4]
[366712426,1750415646654,-490.0,0.00029589,4]
[366712427,1750415646670,-490.0,0.00029589,4]
[366712428,1750415646686,-497.02,0.00029589,4]
[366712429,1750415646701,-490.0,0.00029589,4]
[366712430,1750415646717,-561.45,0.00029589,4]
[366712431,1750415646734,-490.0,0.00029589,4]
[366712432,1750415646750,-673.68,0.00029589,4]
[366712433,1750415646768,-490.0,0.00029589,4]
[366712434,1750415646785,-798.5,0.00029589,4]
[366712435,1750415646802,-490.0,0.00029589,4]
[366712436,1750415646820,-490.0,0.00029589,4]
[366712437,1750415646837,-490.0,0.00029589,4]
[366712438,1750415646852,-814.97,0.00029589,4]
[366712439,1750415646867,-2237.34,0.00029589,4]
[366712440,1750415646883,-490.0,0.00029589,4]
[366712441,1750415646898,-490.0,0.00029589,4]
[366712442,1750415646915,-997.34,0.00029589,4]
[366712443,1750415646932,-792.52,0.00029589,4]
[366712444,1750415646951,-490.0,0.00029589,4]
[366712445,1750415646969,-490.0,0.00029589,4]
[366712446,1750415646986,-490.0,0.00029589,4]
[366712447,1750415647004,-749.65,0.00029589,4]
[366712448,1750415647022,-490.0,0.00029589,4]
[366712449,1750415647038,-490.0,0.00029589,4]
[366712450,1750415647054,-870.19,0.00029589,4]
[366712451,1750415647070,-661.75,0.00029589,4]
[366712452,1750415647085,-508.02,0.00029589,4]
[366712453,1750415647102,-490.0,0.00029589,4]
[366712454,1750415647120,-490.0,0.00029589,4]
[366712455,1750415647137,-1294.95,0.00029589,4]
[366712456,1750415647154,-490.0,0.00029589,4]
[366712457,1750415647172,-490.0,0.00029589,4]
[366712458,1750415647188,-860.83,0.00029589,4]
[366712459,1750415647205,-1554.68,0.00029589,4]
[366712460,1750415647225,-490.0,0.00029589,4]
[366712461,1750415647243,-475.70833712,0.00029589,4]
[366712462,1750415647259,-686.43,0.00029589,4]
[366712463,1750415647278,-490.0,0.00029589,4]
[366712464,1750415647296,-490.0,0.00029589,4]
[366712465,1750415647312,-620.11,0.00029589,4]
[366712466,1750415647329,-191.28494639,0.00029589,4]
[366712467,1750415647346,-591.54,0.00029589,4]
[366712468,1750415647362,-1692.44,0.00029589,4]
[366712469,1750415647380,-757.27,0.00029589,4]
[366712470,1750415647397,-490.0,0.00029589,4]
[366712471,1750415647413,-1478.21,0.00029589,4]
[366712472,1750415647429,-490.0,0.00029589,4]
[366712473,1750415647446,-490.0,0.00029589,4]
[366712474,1750415647463,-1664.77,0.00029589,4]
[366712475,1750415647482,-513.53,0.00029589,4]
[366712476,1750415647502,-1643.07,0.00029589,4]
[366712477,1750415647518,-2421.62,0.00029589,4]
[366712478,1750415647536,-490.0,0.00029589,4]
[366712479,1750415647553,-1171.85,0.00029589,4]
[366712480,1750415647569,-1002.75,0.00029589,4]
[366712481,1750415647588,-490.0,0.00029589,4]
[366712482,1750415647604,-490.0,0.00029589,4]
[366712483,1750415647621,-490.0,0.00029589,4]
[366712484,1750415647638,-490.0,0.00029589,4]
[366712485,1750415647655,-490.0,0.00029589,4]
[366712486,1750415647671,-1052.23,0.00029589,4]
[366712487,1750415647688,-513.94,0.00029589,4]
[366712488,1750415647705,-1203.58,0.00029589,4]
[366712489,1750415647721,-1052.12,0.00029589,4]
[366712490,1750415647737,-490.0,0.00029589,4]
[366712491,1750415647754,-1116.54,0.00029589,4]
[366712492,1750415647771,-490.0,0.00029589,4]
[366712493,1750415647789,-593.05,0.00029589,4]
[366712494,1750415647807,-713.86,0.00029589,4]
[366712495,1750415647824,-576.72,0.00029589,4]
[366712496,1750415647841,-1207.78,0.00029589,4]
[366712497,1750415647858,-490.0,0.00029589,4]
[366712498,1750415647874,-885.97,0.00029589,4]
[366712499,1750415647892,-1286.94,0.00029589,4]
[366712500,1750415647912,-774.59,0.00029589,4]
[366712501,1750415647932,-663.64,0.00029589,4]